bitfinex/quotes_BTCUSD_20220201
["timestamp","ask_amount","ask_price","bid_price","bid_amount"]
[1643742397816,0.14002325,38573.0,38568.0,0.067937]
[1643742398015,0.14002325,38573.0,38569.0,0.00125264]
[1643742398819,0.37328894,38572.0,38569.0,0.00125264]
[1643742399016,0.397226,38571.0,38569.0,0.00125263]
[1643742399213,1.99028978,38570.0,38569.0,0.00125263]
[1643742399414,2.38751578,38570.0,38569.0,0.00125263]
[1643742399815,2.18474056,38570.0,38569.0,0.00125263]
[1643742400214,2.18474056,38570.0,38568.0,0.0031]
[1643742400461,1.849626,38569.0,38568.0,0.00435268]
[1643742400651,1.897226,38569.0,38568.0,0.00435268]
[1643742401353,1.897226,38569.0,38568.0,0.0031]
[1643742403954,3.272226,38569.0,38568.0,0.0031]
[1643742404206,1.897226,38569.0,38568.0,0.0031]
[1643742409754,1.947226,38569.0,38568.0,0.0031]
[1643742410959,0.349476,38569.0,38568.0,0.0031]
[1643742411157,0.09242325,38573.0,38568.0,0.0031]
[1643742411358,0.349639,38572.0,38568.0,0.0031]
[1643742411561,0.09242325,38573.0,38568.0,0.0031]
[1643742412203,0.349639,38572.0,38568.0,0.0031]
[1643742412405,0.349639,38572.0,38569.0,0.00125264]
[1643742412607,0.349639,38572.0,38569.0,0.00092264]
[1643742413310,0.07540063,38577.0,38568.0,0.13277474]
[1643742413505,0.349639,38576.0,38569.0,0.12966161]
[1643742413705,0.12540063,38577.0,38569.0,0.12966161]
[1643742414105,0.22540063,38577.0,38569.0,0.12966161]
[1643742414506,0.22495063,38577.0,38569.0,0.29556711]
[1643742414706,0.349639,38576.0,38569.0,0.29556711]
[1643742414906,0.28413766,38577.0,38569.0,0.12966161]
[1643742415106,0.349639,38576.0,38569.0,0.12966161]
[1643742415559,0.349639,38576.0,38568.0,0.0031]
[1643742415560,0.1476,38575.0,38568.0,0.0031]
[1643742415760,1.4,38568.0,38564.0,0.0042]
[1643742415962,0.70676578,38567.0,38565.0,0.00500446]
[1643742416160,1.71073993,38566.0,38565.0,0.00500446]
[1643742416459,2.4537386,38566.0,38565.0,0.00500446]
[1643742416857,2.4537386,38566.0,38564.0,0.0042]
[1643742417058,1.76818385,38565.0,38564.0,0.00545116]
[1643742417258,1.81578385,38565.0,38564.0,0.00545116]
[1643742417675,1.90525351,38565.0,38564.0,0.00545116]
[1643742417857,1.93543963,38565.0,38564.0,0.00545116]
[1643742418058,1.93543963,38565.0,38564.0,0.0042]
[1643742418461,1.66689478,38565.0,38564.0,0.0042]
[1643742419506,1.76689478,38565.0,38564.0,0.0042]
[1643742420708,1.76530837,38565.0,38564.0,0.0042]
[1643742427104,0.61689478,38565.0,38564.0,0.0042]
[1643742427305,0.56929478,38565.0,38564.0,0.0042]
[1643742427509,1.0,38563.0,38561.0,0.0033]
[1643742427706,1.15,38564.0,38561.0,0.0033]
[1643742427707,2.19784306,38562.0,38561.0,0.0033]
[1643742428106,2.24544306,38562.0,38561.0,0.0033]
[1643742428305,2.14544306,38562.0,38561.0,0.0033]
[1643742428505,2.24544306,38562.0,38561.0,0.0033]
[1643742428910,1.947239,38562.0,38561.0,0.0033]
[1643742429908,0.547239,38562.0,38561.0,0.0033]
[1643742430556,0.397239,38562.0,38561.0,0.0033]
[1643742430759,1.297239,38562.0,38561.0,0.0033]
[1643742431959,1.3737446,38562.0,38561.0,0.0033]
[1643742433660,1.8737446,38562.0,38561.0,0.0033]
[1643742433863,1.9737446,38562.0,38561.0,0.0033]
[1643742435004,1.9261446,38562.0,38561.0,0.0033]
[1643742435805,1.4261446,38562.0,38561.0,0.0033]
[1643742436204,0.00240141,38560.0,38558.0,0.0011]
[1643742436406,1.99944368,38560.0,38558.0,0.0011]
[1643742437607,1.99944368,38560.0,38558.0,0.00234618]
[1643742438151,1.98944368,38560.0,38558.0,0.00234618]
[1643742438551,1.98944368,38560.0,38558.0,0.0011]
[1643742438752,1.98944368,38560.0,38558.0,0.00234618]
[1643742439450,0.59704227,38560.0,38558.0,0.00234618]
[1643742439652,0.349639,38560.0,38558.0,0.00234618]
[1643742439853,0.349639,38560.0,38558.0,0.0011]
[1643742440053,0.59900608,38560.0,38558.0,0.00234618]
[1643742440855,0.75090608,38560.0,38558.0,0.00234618]
[1643742441053,0.75090608,38560.0,38558.0,0.0011]
[1643742441253,0.75090608,38560.0,38558.0,0.00234618]
[1643742441706,2.15090608,38560.0,38558.0,0.00234618]
[1643742442105,2.15090608,38560.0,38558.0,0.0011]
[1643742442305,0.75090608,38560.0,38558.0,0.0011]
[1643742442505,1.60090608,38560.0,38558.0,0.00234618]
[1643742443006,0.75090608,38560.0,38558.0,0.00234618]
[1643742443209,0.27979351,38564.0,38558.0,0.00234618]
[1643742443410,0.35665578,38565.0,38558.0,0.0011]
[1643742443411,0.5,38563.0,38558.0,0.0011]
[1643742443606,0.5,38563.0,38558.0,0.00234618]
[1643742443805,0.11965578,38565.0,38558.0,0.00234618]
[1643742444306,0.11965578,38565.0,38558.0,0.2362978]
[1643742444511,0.11965578,38565.0,38558.0,0.23505162]
[1643742444706,0.11965578,38565.0,38560.0,0.0012461]
[1643742445557,0.06485,38570.0,38560.0,0.0012461]
[1643742445762,0.349639,38569.0,38563.0,0.06484137]
[1643742445958,0.05999068,38571.0,38563.0,0.06484137]
[1643742446357,0.05999068,38571.0,38561.0,0.13092367]
[1643742446560,0.0882108,38569.0,38561.0,0.00124609]
[1643742446958,0.0882108,38569.0,38559.0,0.0022]
[1643742447164,0.0882108,38569.0,38561.0,0.00124607]
[1643742447359,0.1882108,38569.0,38561.0,0.00124607]
[1643742447559,0.349639,38568.0,38561.0,0.00124607]
[1643742447759,0.1,38567.0,38561.0,0.00124607]
[1643742447958,0.349639,38566.0,38561.0,0.00124607]
[1643742448158,1.57587042,38562.0,38559.0,0.0022]
[1643742448358,0.449639,38561.0,38559.0,0.0022]
[1643742448757,1.4519,38560.0,38559.0,0.0022]
[1643742448957,1.801539,38560.0,38559.0,0.0022]
[1643742449204,1.901539,38560.0,38559.0,0.0022]
[1643742453858,1.951539,38560.0,38559.0,0.0022]
[1643742455760,1.901539,38560.0,38559.0,0.0022]
[1643742455961,1.901539,38560.0,38556.0,0.0022]
[1643742455962,1.4,38559.0,38556.0,0.0022]
[1643742456162,0.48518396,38558.0,38556.0,0.0022]
[1643742456360,0.48518396,38558.0,38551.0,0.0053]
[1643742456361,1.40117928,38552.0,38551.0,0.0053]
[1643742456561,1.75081828,38552.0,38551.0,0.0053]
[1643742456809,1.80271828,38552.0,38551.0,0.0053]
[1643742459210,0.40271828,38552.0,38551.0,0.0053]
[1643742459410,0.85271828,38552.0,38551.0,0.0053]
[1643742459812,0.85271828,38552.0,38551.0,0.0031]
[1643742460212,0.95271828,38552.0,38551.0,0.0031]
[1643742460465,1.60271828,38552.0,38551.0,0.0031]
[1643742461657,0.95271828,38552.0,38551.0,0.0031]
[1643742461858,0.40271828,38552.0,38551.0,0.0031]
[1643742462059,0.00117928,38552.0,38551.0,0.0031]
[1643742462858,0.09715219,38552.0,38551.0,0.0031]
[1643742463357,0.49715219,38552.0,38551.0,0.0031]
[1643742463758,0.84679119,38552.0,38551.0,0.0031]
[1643742463959,0.89869119,38552.0,38551.0,0.0031]
[1643742464210,0.99869119,38552.0,38551.0,0.0031]
[1643742464409,1.69869119,38552.0,38551.0,0.0031]
[1643742465310,1.99869119,38552.0,38551.0,0.0031]
[1643742465510,1.69869119,38552.0,38551.0,0.0031]
[1643742466312,1.99869119,38552.0,38551.0,0.0031]
[1643742468769,1.99869119,38552.0,38545.0,0.0011]
[1643742468770,1.4,38550.0,38539.0,0.06038]
[1643742468968,0.401539,38549.0,38540.0,0.00486228]
[1643742469166,0.501539,38549.0,38540.0,0.00486228]
[1643742469367,0.501539,38549.0,38532.0,0.00208789]
[1643742469570,0.501539,38549.0,38525.0,0.0011]
[1643742469571,0.07774611,38533.0,38525.0,0.0011]
[1643742469768,0.6489,38539.0,38525.0,0.0011]
[1643742469769,0.0519,38532.0,38525.0,0.0011]
[1643742470068,0.1115187,38536.0,38525.0,0.0011]
[1643742470069,0.0519,38531.0,38525.0,0.06600706]
[1643742470267,0.0519,38530.0,38525.0,0.05100706]
[1643742470467,0.1,38534.0,38525.0,0.0011]
[1643742470468,0.0519,38529.0,38525.0,0.0011]
[1643742470766,0.0519,38528.0,38525.0,0.0011]
[1643742471915,0.29702542,38528.0,38525.0,0.0011]
[1643742472114,0.37528397,38528.0,38525.0,0.0011]
[1643742472313,0.11362699,38527.0,38525.0,0.0011]
[1643742472514,0.11362699,38527.0,38525.0,0.00229175]
[1643742472714,0.74752363,38526.0,38525.0,0.00229175]
[1643742472916,0.79942363,38526.0,38525.0,0.00229175]
[1643742473116,1.24906263,38526.0,38525.0,0.00229175]
[1643742473318,2.14906263,38526.0,38525.0,0.00229175]
[1643742473516,2.14906263,38526.0,38525.0,0.0011]
[1643742473719,1.24906263,38526.0,38525.0,0.0011]
[1643742474316,1.66906263,38526.0,38525.0,0.0011]
[1643742475664,1.421539,38526.0,38525.0,0.0011]
[1643742475865,0.921539,38526.0,38525.0,0.0011]
[1643742476068,0.4719,38526.0,38525.0,0.0011]
[1643742478268,0.72881846,38526.0,38525.0,0.0011]
[1643742478974,1.07845746,38526.0,38525.0,0.0011]
[1643742479221,1.17845746,38526.0,38525.0,0.0011]
[1643742480823,1.44115974,38526.0,38525.0,0.0011]
[1643742482969,2.81615974,38526.0,38525.0,0.0011]
[1643742483160,1.44115974,38526.0,38525.0,0.0011]
[1643742483362,1.17845746,38526.0,38525.0,0.0011]
[1643742485164,1.17845746,38526.0,38524.0,0.00234178]
[1643742485364,2.13178145,38525.0,38524.0,0.00234178]
[1643742485664,2.13178145,38525.0,38522.0,0.0011918]
[1643742485665,1.52163386,38524.0,38522.0,0.0011918]
[1643742485868,2.07540228,38523.0,38522.0,0.0011918]
[1643742486063,2.22730228,38523.0,38522.0,0.0011918]
[1643742486817,0.82730228,38523.0,38522.0,0.0011918]
[1643742487012,1.701539,38523.0,38522.0,0.0011918]
[1643742488011,1.901539,38523.0,38522.0,0.0011918]
[1643742488910,1.701539,38523.0,38522.0,0.0011918]
[1643742489317,0.501539,38523.0,38522.0,0.0011918]
[1643742489511,0.75265894,38523.0,38522.0,0.0011918]
[1643742490111,1.65265894,38523.0,38522.0,0.0011918]
[1643742490782,1.55265894,38523.0,38522.0,0.0011918]
[1643742490983,0.951539,38523.0,38522.0,0.0011918]
[1643742491180,0.349639,38523.0,38522.0,0.0011918]
[1643742491380,0.42,38526.0,38522.0,0.0011918]
[1643742491381,0.66956504,38526.0,38522.0,0.0011918]
[1643742491579,0.349639,38525.0,38522.0,0.0011918]
[1643742491986,0.42,38526.0,38522.0,0.0011918]
[1643742493179,0.349639,38525.0,38522.0,0.0011918]
[1643742493379,0.42,38526.0,38522.0,0.0011918]
[1643742493780,0.84870305,38523.0,38522.0,0.0011918]
[1643742493981,1.19834205,38523.0,38522.0,0.0011918]
[1643742495218,1.25024205,38523.0,38522.0,0.0011918]
[1643742495816,1.35208618,38523.0,38522.0,0.0011918]
[1643742496817,1.45208618,38523.0,38522.0,0.0011918]
[1643742497016,1.90208618,38523.0,38522.0,0.0011918]
[1643742497817,1.45208618,38523.0,38522.0,0.0011918]
[1643742498264,1.25024205,38523.0,38522.0,0.0011918]
[1643742498474,0.401539,38523.0,38522.0,0.0011918]
[1643742498865,0.349639,38523.0,38522.0,0.0011918]
[1643742499064,0.6,38523.0,38522.0,0.0011918]
[1643742499265,0.949639,38523.0,38522.0,0.0011918]
[1643742500765,0.349639,38523.0,38522.0,0.0011918]
[1643742500964,0.61924403,38525.0,38522.0,0.0011918]
[1643742501165,0.349639,38525.0,38522.0,0.0011918]
[1643742502112,0.42,38526.0,38522.0,0.0011918]
[1643742502914,0.349639,38525.0,38522.0,0.0011918]
[1643742503316,0.064928,38525.0,38522.0,0.0011918]
[1643742503517,0.349639,38524.0,38522.0,0.0011918]
[1643742503716,1.60444374,38523.0,38522.0,0.0011918]
[1643742503915,1.95408274,38523.0,38522.0,0.0011918]
[1643742504816,0.349639,38523.0,38522.0,0.0011918]
[1643742505020,0.349639,38524.0,38522.0,0.0011918]
[1643742505218,0.349639,38525.0,38522.0,0.0011918]
[1643742506159,0.349639,38525.0,38522.0,0.06610729]
[1643742506962,0.42,38526.0,38522.0,0.06610729]
[1643742507764,0.42,38526.0,38522.0,0.11610729]
[1643742508461,0.42,38526.0,38522.0,0.06610729]
[1643742509420,0.42138623,38535.0,38523.0,0.29715544]
[1643742509720,0.02037746,38535.0,38527.0,0.06490399]
[1643742509922,0.02037746,38535.0,38528.0,0.03857689]
[1643742509923,0.02176369,38535.0,38528.0,0.03857689]
[1643742510519,0.02176369,38535.0,38527.0,0.11490399]
[1643742510724,0.02037746,38535.0,38527.0,0.11490399]
[1643742511020,0.02176383,38535.0,38527.0,0.11490399]
[1643742511218,0.02176383,38535.0,38528.0,0.0649]
[1643742511621,0.02176383,38535.0,38527.0,0.11490399]
[1643742511818,0.10471893,38534.0,38527.0,0.11490399]
[1643742512021,0.35209098,38534.0,38527.0,0.11490399]
[1643742512223,0.10471893,38534.0,38527.0,0.11490399]
[1643742512421,0.00138637,38535.0,38527.0,0.11490399]
[1643742512826,0.00138637,38535.0,38528.0,0.04600465]
[1643742513382,0.00138638,38535.0,38528.0,0.04600465]
[1643742513777,0.00138638,38535.0,38528.0,0.09600465]
[1643742513977,0.00138638,38535.0,38528.0,0.05]
[1643742514378,0.24552243,38536.0,38528.0,0.05]
[1643742514578,0.00138638,38535.0,38528.0,0.05]
[1643742515577,0.24552243,38536.0,38528.0,0.05]
[1643742515778,0.00138638,38535.0,38528.0,0.05]
[1643742516579,0.10487427,38535.0,38528.0,0.08358176]
[1643742516810,0.10348789,38535.0,38528.0,0.08358176]
[1643742517010,0.24624435,38534.0,38528.0,0.08358176]
[1643742517209,0.24868829,38534.0,38528.0,0.05]
[1643742517914,0.26032311,38536.0,38528.0,0.09825386]
[1643742518312,0.00138637,38535.0,38528.0,0.05]
[1643742519112,0.35271318,38536.0,38528.0,0.05]
[1643742519412,0.00138638,38535.0,38528.0,0.05]
[1643742519611,0.31716927,38531.0,38528.0,0.05]
[1643742519811,0.26018991,38530.0,38528.0,0.05]
[1643742520862,0.09855776,38531.0,38528.0,0.05]
[1643742521262,0.24553068,38530.0,38528.0,0.05]
[1643742521462,0.24496291,38530.0,38528.0,0.05]
[1643742521863,0.25193656,38532.0,38528.0,0.05]
[1643742523765,0.25193656,38532.0,38527.0,0.05]
[1643742524413,0.25193656,38532.0,38527.0,0.04952499]
[1643742524615,0.11626092,38530.0,38526.0,0.12980084]
[1643742524819,0.29041602,38529.0,38526.0,0.12980084]
[1643742525021,0.0478,38528.0,38522.0,0.13101235]
[1643742525219,0.349639,38527.0,38522.0,0.13101235]
[1643742525417,0.89628514,38523.0,38522.0,0.13101235]
[1643742525820,0.6,38523.0,38522.0,0.13101235]
[1643742526917,0.87611077,38523.0,38522.0,0.13101235]
[1643742527116,0.6,38523.0,38522.0,0.13101235]
[1643742527518,0.0478,38527.0,38522.0,0.12101235]
[1643742527718,0.37167663,38533.0,38522.0,0.18592235]
[1643742527980,0.37167663,38533.0,38522.0,0.23426091]
[1643742527981,0.17515218,38533.0,38522.0,0.23426091]
[1643742528171,0.2394467,38532.0,38522.0,0.23592235]
[1643742528572,0.20081219,38530.0,38522.0,0.23592235]
[1643742528772,0.2394467,38532.0,38522.0,0.23592235]
[1643742528971,0.2394467,38532.0,38522.0,0.28592235]
[1643742529373,0.2394467,38532.0,38524.0,0.0649071]
[1643742529776,0.2477,38534.0,38524.0,0.0649071]
[1643742529972,0.349639,38533.0,38524.0,0.0649071]
[1643742530373,0.1,38532.0,38524.0,0.0649071]
[1643742530774,0.49902881,38534.0,38524.0,0.0649071]
[1643742530976,0.50041512,38535.0,38525.0,0.19471445]
[1643742531173,0.50041512,38535.0,38525.0,0.12980945]
[1643742531174,0.349639,38534.0,38525.0,0.12980945]
[1643742531474,0.29242596,38533.0,38525.0,0.12980945]
[1643742531713,0.349639,38532.0,38525.0,0.12980945]
[1643742531912,0.39242596,38533.0,38525.0,0.12980945]
[1643742532511,0.349639,38532.0,38525.0,0.12980945]
[1643742532911,0.349639,38532.0,38523.0,0.08464202]
[1643742533113,0.349639,38532.0,38523.0,0.03464202]
[1643742533312,0.56757814,38533.0,38523.0,0.03464202]
[1643742533515,0.349639,38532.0,38524.0,0.06491381]
[1643742533913,0.52479118,38532.0,38524.0,0.06491381]
[1643742534112,0.349639,38532.0,38524.0,0.06491381]
[1643742534312,0.08431352,38529.0,38524.0,0.06491381]
[1643742534513,0.29369607,38527.0,38522.0,0.0011918]
[1643742535769,0.1,38528.0,38522.0,0.0011918]
[1643742535972,0.064918,38530.0,38522.0,0.0011918]
[1643742536273,0.17515218,38533.0,38522.0,0.0011918]
[1643742536471,0.49902881,38533.0,38522.0,0.0511918]
[1643742536668,0.54068346,38533.0,38522.0,0.09414713]
[1643742536869,0.21680683,38533.0,38522.0,0.09414713]
[1643742537069,0.72692881,38534.0,38524.0,0.06491031]
[1643742537070,0.79184181,38534.0,38524.0,0.06491031]
[1643742537270,0.58204923,38534.0,38524.0,0.06491031]
[1643742537470,0.08302042,38534.0,38524.0,0.06491031]
[1643742537870,0.064913,38534.0,38524.0,0.06491031]
[1643742538070,0.33323548,38534.0,38524.0,0.06491031]
[1643742538270,0.349639,38533.0,38524.0,0.06491031]
[1643742539520,0.67351563,38533.0,38524.0,0.06491031]
[1643742539918,0.84866781,38533.0,38524.0,0.06491031]
[1643742540322,0.49902881,38533.0,38525.0,0.23821393]
[1643742540520,0.00138478,38535.0,38527.0,0.06490338]
[1643742540521,0.17653696,38535.0,38527.0,0.06490338]
[1643742540821,0.24172241,38537.0,38526.0,0.03787686]
[1643742540822,0.24172241,38537.0,38528.0,0.08427798]
[1643742541020,0.00138484,38535.0,38528.0,0.13427798]
[1643742541219,0.00138484,38535.0,38528.0,0.26674845]
[1643742541417,0.00138484,38535.0,38528.0,0.13427798]
[1643742541622,0.00138484,38535.0,38528.0,0.08427798]
[1643742541818,0.00138484,38535.0,38528.0,0.13427798]
[1643742542018,0.41566886,38536.0,38530.0,0.06490096]
[1643742542219,0.349639,38535.0,38530.0,0.06490096]
[1643742542420,0.35102385,38535.0,38530.0,0.06490096]
[1643742543064,0.67490048,38535.0,38530.0,0.06490096]
[1643742543263,0.67351563,38535.0,38530.0,0.06490096]
[1643742543566,0.6749005,38535.0,38530.0,0.06490096]
[1643742543763,0.85005268,38535.0,38530.0,0.06490096]
[1643742543963,0.6749005,38535.0,38530.0,0.06490096]
[1643742544364,0.73842763,38535.0,38530.0,0.06490096]
[1643742544768,0.414551,38535.0,38530.0,0.06490096]
[1643742544966,0.349639,38535.0,38530.0,0.06490096]
[1643742545168,0.32387663,38537.0,38530.0,0.06490096]
[1643742545671,0.32387663,38535.0,38530.0,0.05990096]
[1643742545867,0.349639,38534.0,38530.0,0.05990096]
[1643742546067,0.38878663,38536.0,38530.0,0.05990096]
[1643742546271,0.49902881,38537.0,38530.0,0.05990096]
[1643742546469,0.349639,38536.0,38530.0,0.05990096]
[1643742547114,0.00138332,38535.0,38530.0,0.05990096]
[1643742547315,0.07694016,38533.0,38530.0,0.05990096]
[1643742547515,0.00138332,38535.0,38530.0,0.05990096]
[1643742548121,0.32387663,38537.0,38530.0,0.05990096]
[1643742548317,0.00138332,38535.0,38530.0,0.05990096]
[1643742549322,0.09334747,38536.0,38530.0,0.05990096]
[1643742549519,0.00138332,38535.0,38530.0,0.05990096]
[1643742549922,0.32525995,38535.0,38530.0,0.05990096]
[1643742550122,0.00138332,38535.0,38530.0,0.05990096]
[1643742551570,0.09334747,38536.0,38530.0,0.05990096]
[1643742551767,0.00138332,38535.0,38530.0,0.05990096]
[1643742551974,0.01309696,38539.0,38530.0,0.35031698]
[1643742552172,0.03875299,38547.0,38530.0,0.35031698]
[1643742552173,0.32380478,38538.0,38533.0,0.1]
[1643742552371,0.03875299,38547.0,38533.0,0.1]
[1643742552372,0.37777224,38540.0,38536.0,0.06488508]
[1643742552573,0.46632072,38554.0,38537.0,0.04450473]
[1643742552574,0.00117928,38552.0,38537.0,0.04450473]
[1643742552773,0.1488525,38551.0,38538.0,0.03572998]
[1643742552968,0.1488525,38551.0,38544.0,0.15817504]
[1643742553170,0.1488525,38551.0,38538.0,0.28262489]
[1643742553171,0.08732514,38551.0,38538.0,0.51312489]
[1643742553372,0.00117928,38552.0,38546.0,0.06487893]
[1643742553671,0.00117928,38552.0,38548.0,0.03569817]
[1643742554317,0.00117928,38552.0,38549.0,0.03623312]
[1643742554718,0.00117928,38552.0,38550.0,0.0854953]
[1643742555720,0.00117928,38552.0,38550.0,0.1]
[1643742555921,0.00117928,38552.0,38550.0,0.05]
[1643742558170,0.00117928,38552.0,38550.0,0.04392211]
[1643742559371,0.00117928,38552.0,38551.0,1.72607033]
[1643742559571,0.00117928,38552.0,38551.0,1.77102992]
[1643742559775,0.00117928,38552.0,38551.0,1.82102992]
[1643742560072,0.00117928,38552.0,38551.0,1.81593479]
[1643742560273,0.00117928,38552.0,38551.0,1.82200486]
[1643742560972,0.00117928,38552.0,38551.0,1.81593479]
[1643742561819,0.00117928,38552.0,38551.0,1.4978]
[1643742562220,0.23547864,38564.0,38555.0,0.06485]
[1643742562221,0.09213493,38559.0,38555.0,0.06485]
[1643742562425,0.09213493,38559.0,38557.0,0.06484847]
[1643742562721,0.29454443,38570.0,38557.0,0.16484847]
[1643742562921,0.3774593,38571.0,38557.0,0.1]
[1643742563120,0.9883,38573.0,38557.0,0.1]
[1643742563121,0.02104294,38562.0,38557.0,0.1]
[1643742563521,0.22615338,38570.0,38557.0,0.1]
[1643742563920,0.00078907,38561.0,38559.0,0.064847]
[1643742564322,0.00078907,38561.0,38560.0,0.69484663]
[1643742564523,0.00078907,38561.0,38560.0,0.91629693]
[1643742564724,1.11026106,38573.0,38562.0,0.08]
[1643742564927,0.36696106,38573.0,38562.0,0.08]
[1643742565123,0.12196106,38573.0,38563.0,0.08]
[1643742565568,0.09462773,38568.0,38565.0,0.08]
[1643742565865,0.09462773,38568.0,38565.0,0.13]
[1643742565866,0.01932645,38566.0,38565.0,0.13]
[1643742566066,0.09462773,38568.0,38565.0,0.13]
[1643742566667,0.99072392,38566.0,38565.0,0.13]
[1643742567065,0.9,38566.0,38565.0,0.13]
[1643742567266,0.09462773,38568.0,38565.0,0.13]
[1643742568668,0.09462773,38568.0,38566.0,0.08]
[1643742568669,0.09601346,38568.0,38566.0,0.08]
[1643742569069,0.09601346,38568.0,38567.0,0.08]
[1643742569717,0.09462773,38568.0,38567.0,0.13]
[1643742570122,0.44403955,38568.0,38567.0,0.13]
[1643742570615,0.09403955,38568.0,38567.0,0.13]
[1643742572118,0.09403955,38568.0,38567.0,0.08]
[1643742573175,0.85,38567.0,38565.0,0.01384442]
[1643742573568,0.85,38567.0,38564.0,0.16017324]
[1643742573769,0.85,38567.0,38564.0,0.12968654]
[1643742573971,0.85,38567.0,38563.0,0.12968331]
[1643742573972,0.9019,38567.0,38563.0,0.12968331]
[1643742574174,0.449639,38566.0,38560.0,0.010375]
[1643742574369,0.10835228,38564.0,38560.0,0.010375]
[1643742574670,0.401539,38563.0,38560.0,0.010375]
[1643742574870,0.24108921,38565.0,38560.0,0.010375]
[1643742574871,0.0519,38562.0,38560.0,0.010375]
[1643742575070,0.0519,38561.0,38560.0,0.010375]
[1643742575373,0.0519,38561.0,38560.0,0.07523257]
[1643742578918,0.0519,38561.0,38560.0,0.010375]
[1643742580020,0.05450392,38561.0,38558.0,0.0648606]
[1643742580574,0.05450392,38561.0,38556.0,0.12972396]
[1643742580771,0.26047651,38558.0,38556.0,0.12972396]
[1643742580972,0.26047651,38558.0,38556.0,0.06486133]
[1643742583175,0.05450392,38561.0,38556.0,0.06486133]
[1643742584215,0.29222564,38559.0,38556.0,0.06486133]
[1643742584814,0.05450392,38561.0,38556.0,0.06486133]
[1643742585819,0.33113618,38561.0,38556.0,0.06486133]
[1643742587619,0.33113618,38561.0,38557.0,0.12971259]
[1643742587817,0.33113618,38561.0,38558.0,0.06485602]
[1643742589683,0.0876477,38560.0,38558.0,0.06485602]
[1643742593317,0.0876477,38560.0,38557.0,0.07446571]
[1643742594319,0.27923618,38561.0,38558.0,0.06485602]
[1643742594320,0.00260392,38561.0,38558.0,0.06485602]
[1643742594520,0.84588969,38567.0,38558.0,0.06485602]
[1643742594721,0.0519,38566.0,38558.0,0.06485602]
[1643742595322,0.29095989,38564.0,38558.0,0.06485602]
[1643742595772,0.349639,38563.0,38558.0,0.06485602]
[1643742595970,0.349639,38563.0,38557.0,0.07446571]
[1643742596173,0.349639,38563.0,38553.0,0.12972196]
[1643742596174,0.43308579,38562.0,38553.0,0.12972196]
[1643742596380,0.32324604,38560.0,38547.0,0.25940064]
[1643742596571,0.27505765,38549.0,38542.0,0.7933]
[1643742596774,0.27505765,38549.0,38541.0,0.5854]
[1643742596775,0.0519,38548.0,38541.0,0.5854]
[1643742596972,0.0519,38548.0,38540.0,0.0031]
[1643742597172,0.0519,38548.0,38540.0,0.19046894]
[1643742597673,0.0519,38548.0,38543.0,0.12975485]
[1643742597871,0.08763544,38547.0,38543.0,0.12975485]
[1643742598070,0.0519,38546.0,38543.0,0.12975485]
[1643742598572,0.27300499,38545.0,38540.0,0.0031]
[1643742598771,0.9519,38544.0,38543.0,0.00120994]
[1643742598978,1.22873472,38544.0,38543.0,0.00120994]
[1643742599628,1.20781366,38544.0,38543.0,0.00120994]
[1643742599829,1.20781366,38544.0,38542.0,0.00120998]
[1643742600129,0.55,38543.0,38542.0,0.00120998]
[1643742600328,0.84571282,38543.0,38542.0,0.00120998]
[1643742600928,1.12072175,38543.0,38540.0,0.0031]
[1643742601127,1.12072175,38543.0,38541.0,0.00121001]
[1643742601330,0.85443519,38542.0,38541.0,0.00121001]
[1643742601530,0.90633519,38542.0,38541.0,0.00121001]
[1643742601828,0.30633519,38542.0,38541.0,0.00121001]
[1643742602031,0.0519,38542.0,38540.0,0.06798327]
[1643742602330,0.2441,38550.0,38540.0,0.11919331]
[1643742602331,0.24139327,38550.0,38540.0,0.11919331]
[1643742602527,0.2454293,38552.0,38541.0,0.04602188]
[1643742602731,0.2454293,38552.0,38540.0,0.05431004]
[1643742602732,0.27613343,38554.0,38542.0,0.03770883]
[1643742602982,0.29725528,38557.0,38547.0,0.18180707]
[1643742603173,0.07929462,38554.0,38547.0,0.18180707]
[1643742603375,0.07929462,38554.0,38548.0,0.06486992]
[1643742603574,0.01940924,38555.0,38550.0,0.00120971]
[1643742604377,0.01940924,38555.0,38551.0,0.06486785]
[1643742604576,0.349639,38554.0,38547.0,0.12973983]
[1643742604775,0.01940924,38555.0,38551.0,0.00120969]
[1643742604977,0.349639,38554.0,38551.0,0.00120969]
[1643742605576,0.08628105,38553.0,38551.0,0.00120969]
[1643742605776,0.08628105,38553.0,38547.0,0.19461283]
[1643742605977,0.98359453,38557.0,38547.0,0.19461283]
[1643742605978,0.75112484,38552.0,38551.0,0.00120969]
[1643742606176,0.95,38551.0,38550.0,0.00630059]
[1643742606376,1.1908199,38551.0,38550.0,0.00630059]
[1643742606580,0.95,38551.0,38550.0,0.00630059]
[1643742607216,1.47060029,38551.0,38550.0,0.00630059]
[1643742607619,1.47060029,38551.0,38547.0,0.19461283]
[1643742608017,1.47060029,38551.0,38547.0,0.12973983]
[1643742608220,1.47060029,38551.0,38546.0,0.05]
[1643742608418,0.09618098,38544.0,38542.0,0.16796038]
[1643742608618,0.23887213,38543.0,38542.0,0.06488209]
[1643742608818,0.09618098,38544.0,38542.0,0.06488209]
[1643742609020,0.27540142,38548.0,38542.0,0.06488209]
[1643742609218,0.34861251,38548.0,38542.0,0.06488209]
[1643742609521,0.32730142,38548.0,38543.0,0.00060345]
[1643742610318,0.42954281,38548.0,38543.0,0.00060345]
[1643742610578,0.26720621,38545.0,38542.0,0.06488209]
[1643742610773,0.26720621,38545.0,38544.0,0.00120386]
[1643742610973,0.60835832,38545.0,38544.0,0.00120386]
[1643742611171,0.69079111,38545.0,38544.0,0.00120386]
[1643742611371,0.0519,38545.0,38544.0,0.00120386]
[1643742611772,0.0519,38545.0,38542.0,0.03381033]
[1643742611972,0.0519,38545.0,38543.0,0.04765751]
[1643742612175,0.1,38552.0,38543.0,0.00120389]
[1643742612371,0.54024309,38551.0,38544.0,0.064874]
[1643742612576,0.0519,38554.0,38544.0,0.10541954]
[1643742612771,0.25078344,38555.0,38544.0,0.10541954]
[1643742613171,0.25078344,38555.0,38547.0,0.00120375]
[1643742613371,0.24218564,38555.0,38549.0,0.06487133]
[1643742613572,0.32005889,38555.0,38549.0,0.06487133]
[1643742613773,0.01990645,38551.0,38549.0,0.06487133]
[1643742614224,0.01990645,38551.0,38549.0,0.15972262]
[1643742614625,0.01990645,38551.0,38550.0,0.09648418]
[1643742614827,0.01990645,38551.0,38550.0,0.09375232]
[1643742615028,0.01990645,38551.0,38549.0,0.16487133]